lending/lending_fUSD_20240911
["ID","MTS","AMOUNT","RATE_DAILY","PERIOD"]
[337760825,1726065031844,-1563.17685935,0.000126,2]
[337760826,1726065031855,-1462.0,0.000126,2]
[337760827,1726065031865,-420.66956482,0.00012614,2]
[337760828,1726065031875,-1000.0,0.000127,2]
[337760829,1726065031885,-150.0,0.00012736,2]
[337760830,1726065031894,-150.0,0.00012744,2]
[337760831,1726065031904,-1997.2,0.00012744,2]
[337760832,1726065031913,-150.0,0.00012745,2]
[337760833,1726065031923,-150.0,0.00012745,2]
[337760834,1726065031932,-499.99,0.00012745,2]
[337760835,1726065031942,-887.81,0.00012745,2]
[337760836,1726065031951,-150.0,0.00012746,2]
[337760837,1726065031960,-150.0,0.00012748,2]
[337760838,1726065031970,-150.0,0.00012765,2]
[337760839,1726065031979,-150.0,0.00012771,2]
[337760840,1726065031988,-150.0,0.00012777,2]
[337760841,1726065031998,-150.0,0.00012781,2]
[337760842,1726065032012,-150.0,0.00012782,2]
[337760844,1726065032022,-150.0,0.00012788,2]
[337760845,1726065032031,-150.0,0.0001279,2]
[337760847,1726065032040,-150.0,0.00012795,2]
[337760849,1726065032050,-22.45928389,0.00012805,2]
[337760857,1726065037731,-127.54071611,0.00012805,2]
[337760858,1726065037741,-150.0,0.00012807,2]
[337760859,1726065037750,-150.0,0.00012809,2]
[337760860,1726065037761,-150.0,0.00012821,2]
[337760861,1726065037771,-150.0,0.00012821,2]
[337760862,1726065037781,-150.0,0.00012822,2]
[337760863,1726065037791,-150.0,0.00012835,2]
[337760864,1726065037801,-150.0,0.00012839,2]
[337760865,1726065037811,-150.0,0.00012843,2]
[337760866,1726065037821,-150.0,0.00012853,2]
[337760867,1726065037830,-150.0,0.00012855,2]
[337760868,1726065037841,-150.0,0.00012864,2]
[337760869,1726065037850,-150.0,0.0001287,2]
[337760870,1726065037860,-1821.27091,0.0001287,2]
[337760871,1726065037870,-150.0,0.00012875,2]
[337760873,1726065037880,-150.0,0.00012876,2]
[337760875,1726065037890,-500.0,0.00012877,2]
[337760877,1726065037900,-29064.66827392,0.0001288,2]
[337760881,1726065037921,-18298.82899283,0.0001288,2]
[337760883,1726065037932,-1993.61994343,0.0001288,2]
[337760909,1726065039795,-500.0,0.00012873,2]
[337760910,1726065039804,-897.345,0.0001288,2]
[337760911,1726065039857,-154573.63784114,0.0001288,2]
[337760912,1726065039867,-150.0,0.00012885,2]
[337760913,1726065039877,-150.0,0.00012886,2]
[337760914,1726065039886,-150.0,0.00012888,2]
[337760915,1726065039895,-150.0,0.00012891,2]
[337760916,1726065039905,-150.0,0.00012892,2]
[337760917,1726065039914,-500.0,0.00012898,2]
[337760918,1726065039923,-152.16178509,0.00012898,2]
[337760919,1726065039932,-272.56904325,0.00012898,2]
[337760920,1726065039942,-500.0,0.00012898,2]
[337760921,1726065039951,-270.59425381,0.00012898,2]
[337760923,1726065039960,-1000.0,0.00012898,2]
[337760924,1726065039970,-63702.8005,0.00012899,2]
[337760925,1726065039979,-7999.7533,0.00012899,2]
[337760926,1726065039989,-31877.6146,0.00012899,2]
[337760927,1726065039998,-172.8445,0.000129,2]
[337760928,1726065040009,-1391.9473,0.000129,2]
[337760929,1726065040018,-8135.3518,0.000129,2]
[337760930,1726065040027,-1257.5934,0.000129,2]
[337760931,1726065040037,-194.96598699,0.000129,2]
[337760932,1726065040046,-150.0,0.00012903,2]
[337760933,1726065040056,-150.0,0.00012924,2]
[337760934,1726065040066,-150.0,0.00012927,2]
[337760935,1726065040077,-150.0,0.00012934,2]
[337760936,1726065040086,-150.0,0.00012945,2]
[337760937,1726065040095,-487.03368496,0.00012968,2]
[337760938,1726065040105,-150.0,0.00012975,2]
[337760939,1726065040114,-150.0,0.00012988,2]
[337760940,1726065040123,-150.0,0.00012991,2]
[337760941,1726065040133,-150.0,0.00012996,2]
[337760942,1726065040143,-590.15131518,0.00012998,2]
[337760943,1726065040152,-213.33630603,0.00012999,2]
[337760944,1726065040162,-150.01,0.00012999,2]
[337760945,1726065040171,-1000.0,0.00012999,2]
[337760946,1726065040180,-150.0,0.00012999,2]
[337760947,1726065040190,-185.58751967,0.00012999,2]
[337760948,1726065040199,-150.0,0.00012999,2]
[337760949,1726065040208,-651113.6032472,0.00013,2]
[337760950,1726065040217,-191578.268962,0.00013,2]
[337760951,1726065040227,-1500.0,0.00013,2]
[337760952,1726065040236,-1500.0,0.00013,2]
[337760953,1726065040245,-1500.0,0.00013,2]
[337760954,1726065040254,-1500.0,0.00013,2]
[337760955,1726065040266,-1500.0,0.00013,2]
[337760956,1726065040276,-1500.0,0.00013,2]
[337760957,1726065040285,-1500.0,0.00013,2]
[337760958,1726065040294,-1500.0,0.00013,2]
[337760959,1726065040303,-1782.34,0.00013,2]
[337760960,1726065040313,-1500.0,0.00013,2]
[337760961,1726065040322,-257.660511,0.00013,2]
[337760962,1726065040334,-257.660511,0.00013,2]
[337760963,1726065040343,-257.660511,0.00013,2]
[337760964,1726065040353,-257.660511,0.00013,2]
[337760965,1726065040363,-266.124441,0.00013,2]
[337760966,1726065040373,-266.124441,0.00013,2]
[337760967,1726065040383,-266.124441,0.00013,2]
[337760968,1726065040392,-266.124441,0.00013,2]
[337760969,1726065040402,-151.0,0.00013,2]
[337760970,1726065040411,-175.810098,0.00013,2]
[337760971,1726065040421,-283.18215,0.00013,2]
[337760972,1726065040431,-283.18215,0.00013,2]
[337760973,1726065040440,-283.18215,0.00013,2]
[337760974,1726065040450,-283.18215,0.00013,2]
[337760975,1726065040459,-478.45,0.00013,2]
[337760976,1726065040469,-2000.0,0.00013,2]
[337760977,1726065040480,-200.0,0.00013,2]
[337760978,1726065040489,-84524.42854422,0.00013,2]
[337760979,1726065040498,-3073499.21203616,0.00013,2]
[337760995,1726065042655,-6979.6702668,0.00013,2]
[337760996,1726065042819,-628538.84170239,0.00013,2]
[337760997,1726065042829,-68411.4591684,0.00013,2]
[337760998,1726065042838,-1623.61032108,0.00013,2]
[337760999,1726065042848,-659.724,0.00013,2]
[337761000,1726065042857,-174.904,0.00013,2]
[337761001,1726065042866,-1058673.65099157,0.00013,2]
[337761137,1726065180917,500.0,0.00011164,2]
[337761138,1726065180960,500.0,0.00011164,2]
[337761139,1726065214100,500.0,0.00011164,2]
[337761140,1726065352762,154.94,0.00010959,2]
[337761141,1726065498117,563.26,0.0001029,2]
[337761142,1726066008565,150.87,0.00010959,2]
[337761143,1726066078728,535.09,0.0001015,2]
[337761144,1726066142475,416.89,0.00011992,2]
[337761149,1726066231819,-250.0,0.00012012,2]
[337761150,1726066231829,-164.06,0.00012026,2]
[337761151,1726066231838,-170.6,0.00012069,2]
[337761152,1726066231847,-250.0,0.00012098,2]
[337761153,1726066231857,-229.4,0.00012185,2]
[337761154,1726066231867,-1000.0,0.00012363,2]
[337761155,1726066231876,-535.09,0.00012414,2]
[337761156,1726066231885,-300.0,0.0001252,2]
[337761157,1726066231895,-207.00268631,0.00012521,2]
[337761158,1726066231906,-250.0,0.00012521,2]
[337761159,1726066231918,-42.98731369,0.00012521,2]
[337761160,1726066231929,-709.78062617,0.00012521,2]
[337761161,1726066231948,-299.6900001,0.00012521,2]
[337761162,1726066231960,-1515.94937373,0.00012521,2]
[337761163,1726066231969,-150.0,0.00012521,2]
[337761164,1726066231979,-885.9,0.00012554,2]
[337761165,1726066231989,-1984.8564,0.0001278,2]
[337761166,1726066231998,-66.33418126,0.0001278,2]
[337761167,1726066232010,-401.44091038,0.0001278,2]
[337761168,1726066232021,-138.86490836,0.0001278,2]
[337761169,1726066232031,-151.29845523,0.00012869,2]
[337761170,1726066232042,-520.51854477,0.00012869,2]
[337761171,1726066232052,-198.019,0.00012869,2]
[337761172,1726066232061,-150.0,0.00012869,2]
[337761173,1726066232070,-4780.74572714,0.0001287,2]
[337761174,1726066232083,-664.50234948,0.0001287,2]
[337761175,1726066232094,-13037.23192338,0.0001287,2]
[337761176,1726066232104,-14977.44,0.0001287,2]
[337761177,1726066232114,-1175.37,0.0001287,2]
[337761178,1726066232123,-2042.83167,0.0001287,2]
[337761180,1726066232132,-500.0,0.00012877,2]
[337761182,1726066232141,-13739.9545,0.000129,2]
[337761183,1726066232150,-222.7304,0.000129,2]
[337761184,1726066232160,-151.0330361,0.000129,2]
[337761185,1726066232169,-2125.9198,0.000129,2]
[337761186,1726066232180,-6714.59813963,0.000129,2]
[337761187,1726066232190,-164.63967503,0.000129,2]
[337761188,1726066232199,-6460.3544,0.000129,2]
[337761189,1726066232209,-500.0,0.00012973,2]
[337761190,1726066232218,-150.06,0.0001299,2]
[337761191,1726066232227,-150.06,0.0001299,2]
[337761192,1726066232237,-169.0686501,0.00012999,2]
[337761193,1726066232246,-413.96560361,0.00012999,2]
[337761194,1726066232255,-500.0,0.00012999,2]
[337761195,1726066232265,-411.77139312,0.00012999,2]
[337761196,1726066232274,-500.0,0.00012999,2]
[337761197,1726066232283,-346.17827053,0.00012999,2]
[337761198,1726066232292,-1212.0,0.00013,2]
[337761199,1726066232301,-37656.24803165,0.00013,2]
[337761200,1726066232312,-806.59811442,0.00013,2]
[337761201,1726066232323,-889.15149544,0.00013,2]
[337761202,1726066232346,-1601.38575,0.00013,2]
[337761203,1726066232357,-432.000004,0.00013,2]
[337761204,1726066232367,-6708.88506348,0.00013,2]
[337761205,1726066232378,-1353.49931517,0.00013,2]
[337761206,1726066232391,-846.08694448,0.00013,2]
[337761207,1726066232403,-508.11036067,0.00013,2]
[337761208,1726066232414,-7517.22981859,0.00013,2]
[337761209,1726066232427,-2787.35794757,0.00013,2]
[337761210,1726066232438,-2000.0,0.00013,2]
[337761211,1726066232449,-524.12073936,0.00013,2]
[337761212,1726066232476,-944.55696844,0.00013,2]
[337761213,1726066232487,-982.90310931,0.00013,2]
[337761214,1726066232498,-469.61640419,0.00013,2]
[337761215,1726066232510,-382.31751455,0.00013,2]
[337761216,1726066232521,-62641.76333925,0.00013,2]
[337761217,1726066232531,-13177.92299829,0.00013,2]
[337761218,1726066232546,-15594.2590839,0.00013,2]
[337761219,1726066232557,-389.84087267,0.00013,2]
[337761226,1726066237817,-1070.31820487,0.0001274,2]
[337761227,1726066237827,-17507.61983516,0.00013,2]
[337761228,1726066237838,-50702.62269589,0.00013,2]
[337761229,1726066237857,-5241.13075619,0.00013,2]
[337761230,1726066237869,-63491.59336379,0.00013,2]
[337761231,1726066237881,-6900.74336425,0.00013,2]
[337761232,1726066237988,-1608.02385753,0.00013,2]
[337761233,1726066237999,-947783.54334338,0.00013,2]
[337761234,1726066238009,-2000.0,0.00013,2]
[337761235,1726066238018,-200.0,0.00013,2]
[337761236,1726066238027,-473.46,0.00013,2]
[337761237,1726066238036,-1905.35635057,0.00013,2]
[337761238,1726066238045,-54730.53556391,0.00013,2]
[337761239,1726066238055,-912.79045574,0.00013,2]
[337761240,1726066238064,-491.3790129,0.00013005,2]
[337761242,1726066238074,-16934.5223198,0.00013014,2]
[337761244,1726066238083,-670.52565675,0.00013023,2]
[337761246,1726066238092,-286.4498945,0.00013023,2]
[337761248,1726066238102,-5054.85056271,0.0001305,2]
[337761250,1726066238111,-152.0,0.00013062,3]
[337761252,1726066238120,-6714.59813959,0.00013122,2]
[337761254,1726066238130,-2000.0,0.0001313,2]
[337761256,1726066238139,-200.0,0.0001313,2]
[337761258,1726066238149,-203.9932035,0.000132,2]
[337761260,1726066238158,-1000.0,0.000132,2]
[337761262,1726066238169,-226.0,0.000132,2]
[337761264,1726066238179,-359.0,0.000132,2]
[337761266,1726066238188,-164.63967503,0.00013233,2]
[337761268,1726066238197,-2000.0,0.00013261,2]
[337761270,1726066238206,-200.0,0.00013261,2]
[337761272,1726066238215,-1548.114,0.00013287,2]
[337761274,1726066238224,-451.936,0.00013287,2]
[337761275,1726066238233,-1261.0,0.00013287,2]
[337761277,1726066238242,-625.92,0.00013287,2]
[337761279,1726066238251,-275.819,0.00013287,2]
[337761280,1726066238261,-810.0,0.00013287,2]
[337761281,1726066238270,-557.0,0.00013287,2]
[337761282,1726066238279,-931.0,0.00013287,2]
[337761283,1726066238289,-1901.0,0.00013287,2]
[337761284,1726066238297,-562.379,0.00013287,2]
[337761285,1726066238307,-1119.0,0.00013287,2]
[337761286,1726066238315,-1925.0,0.00013287,2]
[337761287,1726066238325,-252.472,0.00013287,2]
[337761288,1726066238334,-3343.0,0.00013287,2]
[337761289,1726066238343,-807.0,0.00013287,2]
[337761290,1726066238352,-289.873,0.00013287,2]
[337761291,1726066238361,-1145.0,0.00013287,2]
[337761292,1726066238371,-9310.0,0.00013287,2]
[337761293,1726066238380,-5860.0,0.00013287,2]
[337761294,1726066238390,-150.0,0.00013287,2]
[337761295,1726066238402,-1079.0,0.00013287,2]
[337761296,1726066238411,-151.03303605,0.000133,2]
[337761297,1726066238421,-160.0,0.00013329,2]
[337761298,1726066238432,-6714.59813959,0.00013344,2]
[337761299,1726066238442,-154.76,0.0001337,2]
[337761300,1726066238452,-150.0,0.0001337,2]
[337761301,1726066238461,-150.0,0.0001337,2]
[337761302,1726066238471,-150.0,0.0001337,2]
[337761303,1726066238481,-150.0,0.0001337,2]
[337761304,1726066238490,-150.0,0.0001337,2]
[337761305,1726066238500,-150.0,0.0001337,2]
[337761306,1726066238510,-150.0,0.0001337,2]
[337761307,1726066238519,-150.0,0.0001337,2]
[337761308,1726066238529,-150.0,0.0001337,2]
[337761309,1726066238539,-150.0,0.0001337,2]
[337761310,1726066238549,-357.17,0.0001337,2]
[337761311,1726066238558,-806.35,0.0001337,2]
[337761312,1726066238568,-150.0,0.00013389,2]
[337761313,1726066238578,-150.0,0.00013389,2]
[337761314,1726066238587,-200.0,0.00013394,2]
[337761315,1726066238596,-3175.58,0.00013425,2]
[337761316,1726066238605,-796.0,0.00013503,2]
[337761317,1726066238615,-6714.59813959,0.00013567,2]
[337761318,1726066238625,-164.63967503,0.00013567,2]
[337761319,1726066238635,-170.6,0.00013577,2]
[337761320,1726066238645,-153.0,0.00013624,2]
[337761321,1726066238655,-1042.33,0.00013698,2]
[337761322,1726066238664,-1042.33,0.00013698,2]
[337761323,1726066238673,-1042.33,0.00013698,2]
[337761324,1726066238683,-1042.33,0.00013698,2]
[337761325,1726066238693,-1042.33,0.00013698,2]
[337761326,1726066238702,-1042.33,0.00013698,2]
[337761327,1726066238711,-1042.33,0.00013698,2]
[337761328,1726066238721,-1042.33,0.00013698,2]
[337761329,1726066238731,-1042.33,0.00013698,2]
[337761330,1726066238740,-1042.33,0.00013698,2]
[337761331,1726066238750,-1042.33,0.00013698,2]
[337761332,1726066238759,-1042.33,0.00013698,2]
[337761333,1726066238768,-1042.33,0.00013698,2]
[337761334,1726066238778,-1042.33,0.00013698,2]
[337761335,1726066238787,-1042.33,0.00013698,2]
[337761336,1726066238796,-1042.33,0.00013698,2]
[337761337,1726066238806,-1042.33,0.00013698,2]
[337761338,1726066238815,-1042.33,0.00013698,2]
[337761339,1726066238824,-1042.33,0.00013698,2]
[337761340,1726066238833,-1042.33,0.00013698,2]
[337761341,1726066238842,-1042.33,0.00013698,2]
[337761342,1726066238851,-1042.33,0.00013698,2]
[337761343,1726066238861,-1042.33,0.00013698,2]
[337761344,1726066238870,-1042.33151072,0.00013698,2]
[337761345,1726066238880,-166.91,0.00013699,2]
[337761346,1726066238889,-153.32,0.00013699,2]
[337761347,1726066238898,-179.2,0.00013699,2]
[337761348,1726066238908,-3207.57,0.00013699,2]
[337761349,1726066238918,-3383.74,0.00013699,2]
[337761350,1726066238929,-500.0,0.00013699,2]
[337761351,1726066238938,-2801.61,0.00013699,2]
[337761352,1726066238948,-200.0,0.00013699,2]
[337761353,1726066238958,-2751.0,0.00013699,2]
[337761354,1726066238968,-2500.0,0.000137,2]
[337761355,1726066238977,-151.03303605,0.000137,2]
[337761356,1726066238987,-229.4,0.00013708,2]
[337761357,1726066238996,-420.0,0.00013736,2]
[337761358,1726066239005,-6714.59813959,0.00013789,2]
[337761359,1726066239015,-150.06,0.0001379,2]
[337761360,1726066239024,-103614.99630514,0.0001379,2]
[337761361,1726066239033,-150.06,0.0001379,2]
[337761362,1726066239195,-13856.996775,0.00013791,2]
[337761363,1726066239206,-491.3790129,0.00013791,2]
[337761364,1726066239215,-600672.67070182,0.00013799,2]
[337761365,1726066239225,-354914.611812,0.000138,2]
[337761366,1726066239234,-160.0,0.000138,2]
[337761367,1726066239243,-286.4498945,0.00013881,2]
[337761368,1726066239253,-150.0,0.00013885,2]
[337761369,1726066239263,-286.4498945,0.0001389,2]
[337761370,1726066239272,-10779.4712302,0.0001389,2]
[337761371,1726066239281,-7701.9456854,0.0001389,2]
[337761372,1726066239291,-491.3790129,0.0001389,2]
[337761373,1726066239300,-491.3790129,0.0001389,2]
[337761374,1726066239310,-30445.0,0.000139,5]
[337761375,1726066239319,-459437.110543,0.000139,2]
[337761376,1726066239328,-164.63967503,0.000139,2]
[337761377,1726066239337,-500.0,0.00013904,2]
[337761378,1726066239346,-500.0,0.00013904,2]
[337761379,1726066239355,-500.0,0.00013904,2]
[337761380,1726066239365,-1000.0,0.00013908,2]
[337761381,1726066239374,-255.0,0.00013976,2]
[337761382,1726066239384,-267.61794396,0.00014,2]
[337761383,1726066239396,-1700.80946594,0.00014,2]
[337761384,1726066239406,-287.38225199,0.00014,2]
[337761385,1726066239415,-150.0,0.00014,2]
[337761386,1726066239424,-6714.59813959,0.00014011,2]
[337761387,1726066239437,-151.03303605,0.000141,2]
[337761388,1726066239446,-300.0,0.00014105,2]
[337761389,1726066239455,-796.0,0.00014178,2]
[337761390,1726066239465,-204.400549,0.00014194,2]
[337761391,1726066239476,-1209.116479,0.00014194,2]
[337761392,1726066239487,-849.709693,0.00014194,2]
[337761393,1726066239496,-183.992022,0.00014194,2]
[337761394,1726066239507,-22125.987271,0.00014194,2]
[337761395,1726066239516,-25572.677463,0.00014194,2]
[337761396,1726066239525,-255.0,0.00014201,2]
[337761397,1726066239534,-6714.59813959,0.00014233,2]
[337761398,1726066239544,-164.63967503,0.00014233,2]
[337761399,1726066239553,-600.0,0.00014249,2]
[337761400,1726066239564,-600.0,0.00014249,2]
[337761401,1726066239573,-5021.96411,0.0001425,2]
[337761402,1726066239583,-160.0,0.00014272,2]
[337761403,1726066239593,-600.0,0.00014349,2]
[337761404,1726066239603,-600.0,0.00014349,2]
[337761405,1726066239612,-600.0,0.00014349,2]
[337761406,1726066239621,-600.0,0.00014349,2]
[337761407,1726066239631,-600.0,0.0001435,2]
[337761408,1726066239640,-600.0,0.0001435,2]
[337761409,1726066239649,-600.0,0.0001435,2]
[337761410,1726066239659,-600.0,0.0001435,2]
[337761411,1726066239668,-600.0,0.0001435,2]
[337761412,1726066239681,-600.0,0.0001435,2]
[337761414,1726066239691,-600.0,0.0001435,2]
[337761415,1726066239700,-600.0,0.0001435,2]
[337761416,1726066239709,-600.0,0.0001435,2]
[337761418,1726066239718,-600.0,0.0001435,2]
[337761419,1726066239727,-600.0,0.0001435,2]
[337761420,1726066239737,-600.0,0.0001435,2]
[337761421,1726066239746,-600.0,0.0001435,2]
[337761422,1726066239755,-600.0,0.0001435,2]
[337761423,1726066239764,-600.0,0.0001435,2]
[337761424,1726066239774,-600.0,0.0001435,2]
[337761425,1726066239783,-600.0,0.0001435,2]
[337761426,1726066239793,-856.91837087,0.0001435,2]
[337761427,1726066239802,-491.3790129,0.00014352,2]
[337761428,1726066239811,-150.06,0.00014362,2]
[337761429,1726066239821,-286.4498945,0.00014362,2]
[337761430,1726066239831,-500.0,0.00014363,2]
[337761431,1726066239841,-1209.116479,0.00014371,2]
[337761432,1726066239851,-849.709693,0.00014371,2]
[337761433,1726066239860,-22125.987271,0.00014371,2]
[337761434,1726066239870,-25572.677463,0.00014371,2]
[337761435,1726066239879,-500.0,0.00014372,2]
[337761436,1726066239888,-500.0,0.00014381,2]
[337761437,1726066239897,-150.0,0.00014381,2]
[337761438,1726066239906,-153.32,0.00014384,2]
[337761439,1726066239916,-500.0,0.0001439,2]
[337761440,1726066239925,-500.0,0.00014398,2]
[337761441,1726066239937,-500.0,0.00014407,2]
[337761442,1726066239947,-500.0,0.00014416,2]
[337761443,1726066239956,-500.0,0.00014425,2]
[337761444,1726066239966,-203.0,0.0001443,2]
[337761445,1726066239975,-212.0,0.0001443,2]
[337761446,1726066239985,-500.0,0.00014434,2]
[337761447,1726066239994,-500.0,0.00014442,2]
[337761448,1726066240004,-500.0,0.00014451,2]
[337761449,1726066240014,-6714.59813959,0.00014456,2]
[337761450,1726066240024,-500.0,0.0001446,2]
[337761451,1726066240033,-500.0,0.00014469,2]
[337761452,1726066240043,-500.0,0.00014478,2]
[337761453,1726066240053,-500.0,0.00014486,2]
[337761454,1726066240063,-500.0,0.00014495,2]
[337761455,1726066240072,-151.03303605,0.000145,2]
[337761456,1726066240082,-500.0,0.00014504,2]
[337761457,1726066240092,-500.0,0.00014513,2]
[337761458,1726066240101,-388.197547,0.00014521,2]
[337761459,1726066240111,-500.0,0.00014522,2]
[337761460,1726066240121,-4624.4201406,0.00014528,2]
[337761461,1726066240130,-286.4498945,0.0001453,2]
[337761462,1726066240140,-500.0,0.0001453,2]
[337761463,1726066240151,-243326.0,0.00014538,2]
[337761464,1726066240161,-163.128601,0.00014538,2]
[337761465,1726066240170,-163.128601,0.00014538,2]
[337761466,1726066240181,-500.0,0.00014539,2]
[337761467,1726066240191,-600.0,0.0001454,2]
[337761468,1726066240200,-600.0,0.0001454,2]
[337761469,1726066240211,-500.0,0.00014548,2]
[337761470,1726066240221,-1209.116479,0.00014549,2]
[337761471,1726066240231,-849.709693,0.00014549,2]
[337761472,1726066240240,-22125.987271,0.00014549,2]
[337761473,1726066240250,-25572.677463,0.00014549,2]
[337761474,1726066240259,-600.0,0.00014549,2]
[337761475,1726066240269,-600.0,0.00014549,2]
[337761476,1726066240278,-600.0,0.00014549,2]
[337761477,1726066240288,-600.0,0.00014549,2]
[337761479,1726066240297,-600.0,0.00014549,2]
[337761480,1726066240306,-600.0,0.0001455,2]
[337761481,1726066240315,-600.0,0.0001455,2]
[337761483,1726066240324,-600.0,0.0001455,2]
[337761484,1726066240334,-600.0,0.0001455,2]
[337761486,1726066240343,-600.0,0.0001455,2]
[337761488,1726066240352,-600.0,0.0001455,2]
[337761490,1726066240361,-600.0,0.0001455,2]
[337761492,1726066240371,-600.0,0.0001455,2]
[337761494,1726066240380,-600.0,0.0001455,2]
[337761496,1726066240392,-600.0,0.0001455,2]
[337761499,1726066240405,-600.0,0.0001455,2]
[337761500,1726066240414,-600.0,0.0001455,2]
[337761501,1726066240423,-600.0,0.0001455,2]
[337761502,1726066240435,-600.0,0.0001455,2]
[337761503,1726066240444,-600.0,0.0001455,2]
[337761504,1726066240453,-600.0,0.0001455,2]
[337761505,1726066240463,-600.0,0.0001455,2]
[337761506,1726066240474,-600.0,0.0001455,2]
[337761507,1726066240484,-600.0,0.0001455,2]
[337761508,1726066240493,-600.0,0.0001455,2]
[337761509,1726066240502,-600.0,0.0001455,2]
[337761510,1726066240511,-600.0,0.0001455,2]
[337761511,1726066240521,-600.0,0.0001455,2]
[337761512,1726066240530,-600.0,0.0001455,2]
[337761513,1726066240540,-600.0,0.0001455,2]
[337761514,1726066240549,-600.0,0.0001455,2]
[337761515,1726066240560,-600.0,0.0001455,2]
[337761516,1726066240569,-600.0,0.0001455,2]
[337761517,1726066240579,-600.0,0.0001455,2]
[337761518,1726066240589,-600.0,0.0001455,2]
[337761519,1726066240599,-600.0,0.0001455,2]
[337761520,1726066240609,-500.0,0.00014557,2]
[337761521,1726066240618,-500.0,0.00014566,2]
[337761522,1726066240628,-164.63967503,0.00014567,2]
[337761523,1726066240638,-500.0,0.00014573,2]
[337761524,1726066240647,-500.0,0.00014573,2]
[337761525,1726066240656,-500.0,0.00014573,2]
[337761526,1726066240665,-156.28979743,0.00014573,2]
[337761527,1726066240675,-179.86802228,0.00014573,2]
[337761528,1726066240686,-500.0,0.00014573,2]
[337761529,1726066240695,-500.0,0.00014573,2]
[337761530,1726066240705,-500.0,0.00014573,2]
[337761531,1726066240715,-160.17299622,0.00014573,2]
[337761532,1726066240725,-500.0,0.00014573,2]
[337761533,1726066240735,-150.0,0.00014573,2]
[337761534,1726066240744,-203.31198065,0.00014573,2]
[337761535,1726066240754,-500.0,0.00014574,2]
[337761536,1726066240764,-500.0,0.00014583,2]
[337761537,1726066240773,-500.0,0.00014592,2]
[337761538,1726066240783,-500.0,0.00014601,2]
[337761539,1726066240792,-500.0,0.0001461,2]
[337761540,1726066240802,-166.91,0.00014612,2]
[337761541,1726066240812,-500.0,0.00014618,2]
[337761542,1726066240822,-203.0,0.0001462,2]
[337761543,1726066240832,-212.0,0.0001462,2]
[337761544,1726066240842,-212.0,0.0001462,2]
[337761545,1726066240851,-500.0,0.00014627,2]
[337761546,1726066240861,-500.0,0.00014636,2]
[337761547,1726066240870,-500.0,0.00014645,2]
[337761548,1726066240879,-500.0,0.00014654,2]
[337761549,1726066240889,-500.0,0.00014662,2]
[337761550,1726066240899,-500.0,0.00014671,2]
[337761551,1726066240908,-6714.59813959,0.00014678,2]
[337761552,1726066240918,-535.09,0.00014678,2]
[337761553,1726066240927,-500.0,0.0001468,2]
[337761554,1726066240939,-500.0,0.00014689,2]
[337761555,1726066240948,-500.0,0.00014698,2]
[337761556,1726066240958,-500.0,0.00014706,2]
[337761557,1726066240968,-500.0,0.00014715,2]
[337761558,1726066240977,-491.3790129,0.00014716,2]
[337761559,1726066240987,-500.0,0.00014724,2]
[337761560,1726066240996,-1209.116479,0.00014726,2]